bitfinex/quotes_BTCUSD_20241123
["timestamp","ask_amount","ask_price","bid_price","bid_amount"]
[1732330699293,0.0787604,98055.0,98025.0,0.1230694]
[1732330700568,0.0787604,98055.0,98025.0,0.08206939]
[1732330704412,0.046,98054.0,98025.0,0.08206939]
[1732330704656,0.046,98054.0,98025.0,0.03706939]
[1732330704896,0.046,98054.0,98023.0,0.03512288]
[1732330705134,0.046,98054.0,98023.0,0.07622935]
[1732330705609,0.046,98054.0,98023.0,0.03512288]
[1732330707071,0.081,98053.0,98023.0,0.03512288]
[1732330707294,0.046,98052.0,98023.0,0.03512288]
[1732330707792,0.04211205,98052.0,98023.0,0.03512288]
[1732330708037,0.04211205,98052.0,98004.0,0.002]
[1732330708038,0.046,98050.0,97998.0,0.36100017]
[1732330708279,0.0008604,98055.0,97998.0,0.36100017]
[1732330708280,0.046,98048.0,97998.0,0.36100017]
[1732330708529,0.081,98047.0,97998.0,0.36100017]
[1732330708746,0.046,98046.0,97998.0,0.35804996]
[1732330709213,0.046,98046.0,97998.0,0.14204979]
[1732330710855,0.046,98044.0,98000.0,0.0628]
[1732330712192,0.081,98043.0,98001.0,0.0236]
[1732330712413,0.046,98042.0,98001.0,0.0236]
[1732330712655,0.046,98043.0,98003.0,0.0462]
[1732330712891,0.046,98043.0,98002.0,0.0323]
[1732330712892,0.046,98043.0,98004.0,0.0462]
[1732330713999,0.0756,98054.0,98004.0,0.0462]
[1732330714214,0.0756,98054.0,98005.0,0.00101986]
[1732330715597,0.0489,98053.0,98005.0,0.00101986]
[1732330715805,0.0489,98051.0,98005.0,0.00101986]
[1732330716012,0.0489,98049.0,98006.0,0.0478]
[1732330716230,0.0489,98047.0,98006.0,0.0478]
[1732330716448,0.0489,98045.0,98006.0,0.0478]
[1732330716681,0.0489,98045.0,98006.0,0.0028]
[1732330716901,0.0489,98042.0,98006.0,0.0028]
[1732330717125,0.0756,98041.0,98006.0,0.0028]
[1732330717341,0.0489,98040.0,98006.0,0.0028]
[1732330717790,0.0489,98040.0,98007.0,0.023]
[1732330718479,0.0489,98040.0,98008.0,0.00101989]
[1732330719864,0.03042982,98040.0,98008.0,0.00101989]
[1732330720077,0.0756,98041.0,98008.0,0.00101989]
[1732330720283,0.0756,98041.0,98007.0,0.023]
[1732330720756,0.0498,98040.0,98002.0,0.05507976]
[1732330720980,0.081,98039.0,98002.0,0.05507976]
[1732330721208,0.081,98039.0,98002.0,0.0131]
[1732330722319,0.0498,98038.0,98002.0,0.0131]
[1732330722783,0.081,98039.0,98003.0,0.0451]
[1732330723007,0.081,98039.0,98004.0,0.0451]
[1732330724539,0.081,98039.0,98004.0,0.0001]
[1732330724747,0.1308,98038.0,98004.0,0.0001]
[1732330724957,0.081,98037.0,98004.0,0.0001]
[1732330725172,0.0008604,98044.0,98004.0,0.0001]
[1732330728111,0.081,98041.0,98004.0,0.0001]
[1732330728747,0.07461102,98041.0,97999.0,0.0804]
[1732330729642,0.0498,98040.0,97999.0,0.0804]
[1732330729884,0.0498,98040.0,98000.0,0.0010199]
[1732330730134,0.0008604,98044.0,98002.0,0.0451]
[1732330732715,0.0498,98043.0,98013.0,0.00101986]
[1732330732919,0.0498,98043.0,98012.0,0.00101987]
[1732330733136,0.0008604,98055.0,98013.0,0.0451]
[1732330733349,0.0308604,98055.0,98017.0,0.03]
[1732330733559,0.03,98054.0,98019.0,0.03]
[1732330733764,0.03,98054.0,98020.0,0.00101982]
[1732330734666,0.03,98053.0,98020.0,0.03101982]
[1732330734853,0.03,98053.0,98022.0,0.03]
[1732330735070,0.03,98053.0,98024.0,0.03]
[1732330735285,0.0008604,98055.0,98025.0,0.00101983]
[1732330735286,0.03,98049.0,98025.0,0.00101983]
[1732330735499,0.03,98049.0,98027.0,0.03]
[1732330735949,0.0008601,98044.0,98027.0,0.03]
[1732330736163,0.0008601,98044.0,98028.0,0.00101985]
[1732330736624,0.03,98042.0,98023.0,0.03211985]
[1732330737997,0.0202,98042.0,98023.0,0.03211985]
[1732330738223,0.01030001,98042.0,98023.0,0.03211985]
[1732330738489,0.01030001,98042.0,98024.0,0.03]
[1732330738712,0.00040002,98042.0,98024.0,0.03]
[1732330738919,0.03,98040.0,98024.0,0.03]
[1732330739140,0.03,98040.0,98026.0,0.03]
[1732330739352,0.0774,98043.0,98026.0,0.03]
[1732330739788,0.0676,98043.0,98026.0,0.03]
[1732330740257,0.04808175,98043.0,98024.0,0.03]
[1732330740469,0.04808175,98043.0,98026.0,0.03]
[1732330740685,0.04808175,98043.0,98027.0,0.03]
[1732330741330,0.04028175,98043.0,98027.0,0.03]
[1732330741542,0.04028175,98043.0,98028.0,0.03]
[1732330741768,0.03278175,98043.0,98028.0,0.03]
[1732330742209,0.0075,98043.0,98028.0,0.03]
[1732330742509,0.0475,98046.0,97996.0,0.1302]
[1732330742510,0.0395301,98046.0,97996.0,0.1302]
[1732330742729,0.0395301,98046.0,98003.0,0.1302]
[1732330742943,0.0395301,98046.0,98008.0,0.1302]
[1732330743163,0.0270101,98046.0,98010.0,0.0483]
[1732330743378,0.01252,98046.0,98012.0,0.0483]
[1732330743587,0.01252,98046.0,98014.0,0.0819]
[1732330743799,0.023,98068.0,98016.0,0.0483]
[1732330744008,0.023,98068.0,98017.0,0.04931983]
[1732330744245,0.00076487,98067.0,98017.0,0.04931983]
[1732330744461,0.00076487,98067.0,98018.0,0.0483]
[1732330744682,0.0496,98066.0,98015.0,0.0819]
[1732330744887,0.0496,98064.0,98016.0,0.00076488]
[1732330745114,0.0496,98062.0,98016.0,0.00076488]
[1732330745327,0.0496,98060.0,98016.0,0.00076488]
[1732330745549,0.0496,98058.0,98016.0,0.00076488]
[1732330745756,0.0496,98056.0,98016.0,0.00076488]
[1732330746001,0.0496,98054.0,98016.0,0.00076488]
[1732330746234,0.0496,98052.0,98016.0,0.00076488]
[1732330746474,0.0804,98051.0,98016.0,0.04292587]
[1732330746912,0.0804,98051.0,98016.0,0.00076488]
[1732330747849,0.0482,98050.0,98017.0,0.0496]
[1732330748065,0.0482,98050.0,98018.0,0.00076495]
[1732330748293,0.0482,98050.0,98017.0,0.0496]
[1732330748294,0.0786,98047.0,98017.0,0.0496]
[1732330748961,0.0482,98046.0,98017.0,0.0496]
[1732330749385,0.0482,98046.0,98017.0,0.0046]
[1732330750801,0.0482,98044.0,98017.0,0.0046]
[1732330752755,0.0482,98044.0,98015.0,0.12327832]
[1732330752756,0.0786,98043.0,98015.0,0.08287832]
[1732330752968,0.0482,98042.0,98015.0,0.08287832]
[1732330753861,0.0473,98040.0,98015.0,0.08287832]
[1732330756699,0.0008599,98052.0,98012.0,0.0464]
[1732330756700,0.0473,98038.0,98012.0,0.0464]
[1732330757159,0.0798,98037.0,98012.0,0.0464]
[1732330757624,1e-08,98037.0,98012.0,0.0464]
[1732330758322,1e-08,98037.0,98012.0,0.08753528]
[1732330760140,0.048,98036.0,98012.0,0.08753528]
[1732330760603,0.0828,98051.0,98013.0,0.0465]
[1732330763549,0.1308,98050.0,98013.0,0.0465]
[1732330763772,0.0828,98048.0,98013.0,0.0465]
[1732330763993,0.0828,98046.0,98013.0,0.0465]
[1732330764649,0.048,98045.0,98013.0,0.00349999]
[1732330764864,0.1308,98044.0,98013.0,0.00349999]
[1732330768650,0.1308,98044.0,98008.0,0.07912252]
[1732330769302,0.1308,98044.0,98020.0,2.0]
[1732330769736,0.0828,98043.0,98020.0,2.0]
[1732330770184,0.0526518,98043.0,98020.0,2.0]
[1732330770427,0.0526518,98043.0,98020.0,2.04216099]
[1732330772643,0.0526518,98043.0,98020.0,1.99716099]
[1732330773985,0.0433638,98043.0,98020.0,1.99716099]
[1732330775510,0.0433638,98043.0,98021.0,0.00076509]
[1732330776587,0.0433638,98043.0,98020.0,1.95292608]
[1732330777907,0.0333608,98043.0,98020.0,1.95292608]
[1732330778126,0.0008599,98052.0,98020.0,1.95292608]
[1732330780579,0.0008599,98052.0,98020.0,1.90792608]
[1732330781370,0.1231,98051.0,98021.0,0.0472]
[1732330784680,0.0476,98050.0,98021.0,0.0022]
[1732330785151,0.0476,98048.0,98021.0,0.0022]
[1732330785377,0.04453817,98048.0,98021.0,0.0022]
[1732330785620,0.0755,98047.0,98021.0,0.0022]
[1732330785820,0.02260547,98068.0,98021.0,0.0022]
[1732330786035,0.00127487,98067.0,98022.0,0.0010199]
[1732330788443,0.0476,98066.0,98022.0,0.0010199]
[1732330788594,0.02427487,98065.0,98020.0,1.86786638]
[1732330788840,0.1231,98062.0,98020.0,1.86786638]
[1732330789044,0.1231,98059.0,98020.0,1.86786638]
[1732330789252,0.1231,98057.0,98020.0,1.86786638]
[1732330789463,0.0476,98053.0,98020.0,1.86786638]
[1732330789666,0.0476,98051.0,98020.0,1.86786638]
[1732330789867,0.0476,98049.0,98020.0,1.86786638]
[1732330790078,0.0755,98048.0,98020.0,1.86786638]
[1732330790299,0.0476,98047.0,98020.0,1.86786638]
[1732330791586,0.0476,98047.0,98021.0,0.0472]
[1732330792635,0.0476,98047.0,98021.0,0.0022]
[1732330793480,0.0476,98047.0,98020.0,1.86786638]
[1732330795009,0.0476,98047.0,98020.0,1.88277853]
[1732330795651,0.0476,98047.0,98021.0,0.01491215]
[1732330796100,0.0434394,98047.0,98021.0,0.01491215]
[1732330796528,0.0434394,98047.0,98020.0,1.83777853]
[1732330796969,0.0434394,98047.0,98021.0,0.0017198]
[1732330798911,0.0755,98048.0,98021.0,0.0017198]
[1732330799180,0.0707863,98048.0,98021.0,0.0017198]
[1732330800513,0.0707863,98048.0,98020.0,1.79449833]
[1732330802248,0.047,98047.0,98020.0,1.79449833]
[1732330802479,0.0992,98046.0,98020.0,1.79449833]
[1732330802691,0.07,98044.0,98020.0,1.79449833]
[1732330802896,0.023,98041.0,98020.0,1.79449833]
[1732330803141,0.12447513,98040.0,98020.0,1.79449833]
[1732330803349,0.047,98038.0,98020.0,1.79449833]
[1732330803590,0.12447513,98037.0,98020.0,1.79449833]
[1732330803892,0.047,98035.0,98020.0,1.79449833]
[1732330804532,0.047,98035.0,98020.0,1.74949833]
[1732330804964,0.047,98033.0,98020.0,1.74949833]
[1732330805414,0.00127513,98032.0,98020.0,1.74949833]
[1732330805627,0.03710001,98031.0,98020.0,1.74949833]
[1732330805834,0.00127513,98035.0,98020.0,1.74949833]
[1732330808630,0.047,98034.0,98020.0,1.74949833]
[1732330808837,0.00127513,98033.0,98020.0,1.74949833]
[1732330809252,0.0762,98036.0,98020.0,1.74949833]
[1732330809253,0.00127513,98035.0,98020.0,1.74949833]
[1732330809484,0.05579297,98036.0,98020.0,1.70449833]
[1732330810158,0.03389298,98036.0,98021.0,0.0010201]
[1732330810362,0.0008602,98048.0,98021.0,0.0010201]
[1732330810587,0.07517271,98070.0,98022.0,0.01235756]
[1732330810802,0.07517271,98070.0,98023.0,0.00101995]
[1732330811024,0.07517271,98070.0,98024.0,0.00101995]
[1732330811216,0.07517271,98070.0,98024.0,0.01235756]
[1732330811467,0.07517271,98070.0,98025.0,0.00101995]
[1732330811684,0.023,98069.0,98025.0,0.00101995]
[1732330811871,0.023,98069.0,98026.0,0.01235756]
[1732330812098,0.047,98068.0,98028.0,0.122]
[1732330812325,0.023,98065.0,98029.0,0.00101991]
[1732330812545,0.047,98064.0,98029.0,0.00101991]
[1732330812796,0.023,98061.0,98028.0,0.07801991]
[1732330813001,0.00101991,98060.0,98029.0,0.00101991]
[1732330813443,0.00762665,98059.0,98029.0,0.01262945]
[1732330813670,0.0762,98063.0,98031.0,0.046]
[1732330813671,0.04760845,98063.0,98031.0,0.046]
[1732330813896,0.04760845,98063.0,98030.0,0.08760954]
[1732330813897,0.02060845,98063.0,98034.0,0.0822]
[1732330814166,0.02060845,98063.0,98035.0,0.0010198]
[1732330816511,0.02060845,98063.0,98035.0,0.04203151]
[1732330816725,0.02060845,98063.0,98034.0,0.09380954]
[1732330816726,0.0010198,98062.0,98034.0,0.04982934]
[1732330816938,0.0010198,98062.0,98035.0,0.00101981]
[1732330817147,0.0010198,98062.0,98034.0,0.09126121]
[1732330819634,0.04982526,98090.0,98049.0,0.00101971]
[1732330819847,0.04982526,98089.0,98050.0,0.0482]
[1732330820062,0.04982526,98089.0,98051.0,0.04921971]
[1732330820695,0.0008602,98062.0,98051.0,0.0032]
[1732330822682,0.0008602,98062.0,98051.0,0.04384009]
[1732330822893,0.0008602,98062.0,98051.0,0.0032]
[1732330824621,0.0008602,98062.0,98047.0,0.0773]
[1732330824622,0.0008602,98062.0,98047.0,0.07689375]
[1732330824834,0.0008602,98062.0,98047.0,0.0355]
[1732330825801,0.12080726,98075.0,98047.0,0.0355]
[1732330826011,0.12080726,98075.0,98048.0,0.0482]
[1732330828858,0.12080726,98075.0,98048.0,0.04540506]
[1732330830206,0.1025579,98075.0,98048.0,0.04540506]
[1732330830469,0.0008605,98108.0,98049.0,0.00101972]
[1732330830680,0.0008605,98108.0,98052.0,0.0482]
[1732330830889,0.0008605,98108.0,98055.0,0.0482]
[1732330831097,0.0008605,98108.0,98056.0,0.07831961]
[1732330831308,0.0008605,98108.0,98058.0,0.0773]
[1732330831526,0.0008605,98108.0,98061.0,0.0773]
[1732330831756,0.0008605,98108.0,98062.0,0.0688266]
[1732330831968,0.0008605,98108.0,98063.0,0.0773]
[1732330832178,0.0008605,98108.0,98064.0,0.00101961]
[1732330832608,0.0008605,98108.0,98063.0,0.0966788]
[1732330832609,0.00101961,98107.0,98063.0,0.05269841]
[1732330832817,0.07871961,98107.0,98063.0,0.05269841]
[1732330833023,0.00086,98075.0,98064.0,0.00101961]
[1732330833900,0.00086,98075.0,98064.0,0.02039841]
[1732330834343,0.05257061,98091.0,98065.0,0.0193788]
[1732330834568,0.05257061,98091.0,98066.0,0.00101961]
[1732330834985,0.05257061,98091.0,98066.0,0.02039841]
[1732330836472,0.05257061,98091.0,98066.0,0.06136245]
[1732330836684,0.00101961,98090.0,98066.0,0.01636245]
[1732330836904,0.00101961,98090.0,98063.0,0.03331961]
[1732330837138,0.00101961,98090.0,98064.0,0.00101961]
[1732330837380,0.00101961,98090.0,98046.0,0.023]
[1732330837834,0.0452,98089.0,98046.0,0.023]
[1732330838053,0.0762,98086.0,98046.0,0.023]
[1732330838311,0.0452,98083.0,98045.0,1.55348544]
[1732330838552,0.1,98089.0,98045.0,1.55348544]
[1732330838553,0.0452,98081.0,98045.0,1.55348544]
[1732330838773,0.00127465,98080.0,98045.0,1.55348544]
[1732330840269,0.00127465,98080.0,98046.0,0.1236]
[1732330840704,0.0452,98081.0,98046.0,0.0786]
[1732330840981,0.00127466,98080.0,98046.0,0.0786]
[1732330841207,0.0497,98079.0,98046.0,0.0786]
[1732330841440,0.00127466,98078.0,98046.0,0.0786]
[1732330842169,0.00127466,98078.0,98047.0,0.02227972]
[1732330843639,0.00127466,98078.0,98048.0,0.00081602]
[1732330844741,0.00127466,98078.0,98046.0,0.03441602]
[1732330844921,0.0497,98076.0,98046.0,0.03613562]
[1732330845126,0.00127466,98075.0,98046.0,0.03613562]
[1732330847060,0.00127466,98075.0,98047.0,0.02227972]
[1732330847262,0.05097466,98074.0,98047.0,0.02227972]
[1732330848834,0.05097466,98074.0,98046.0,0.01341534]
[1732330850158,0.0774,98073.0,98046.0,0.01341534]
[1732330850387,0.00127466,98072.0,98046.0,0.01341534]
[1732330851871,0.0492,98071.0,98046.0,0.01341534]
[1732330852092,0.1,98089.0,98046.0,0.01341534]
[1732330852093,0.1,98066.0,98046.0,0.0017196]
[1732330852307,0.0492,98063.0,98046.0,0.0017196]
[1732330852508,0.0492,98061.0,98046.0,0.0017196]
[1732330852719,0.0492,98059.0,98045.0,1.51020504]
[1732330852931,0.12787495,98058.0,98045.0,1.51020504]
[1732330853166,0.1266,98057.0,98045.0,1.51020504]
[1732330853392,0.12787495,98056.0,98045.0,1.51020504]
[1732330853596,0.0774,98054.0,98045.0,1.51020504]
[1732330853797,0.12667495,98053.0,98045.0,1.51020504]
[1732330854008,0.0468,98052.0,98045.0,1.51020504]
[1732330854211,0.00127495,98051.0,98045.0,1.51020504]
[1732330856703,0.00127495,98051.0,98045.0,1.46520504]
[1732330857355,0.00127495,98051.0,98046.0,0.0017198]
[1732330860820,0.00127495,98051.0,98045.0,1.42192484]
[1732330862151,0.1212,98050.0,98045.0,1.42192484]
[1732330862406,0.1,98060.0,98045.0,1.42192484]
[1732330862407,0.1212,98048.0,98045.0,1.42192484]
[1732330862630,0.045,98046.0,98045.0,1.42192484]
[1732330864933,0.045,98046.0,98045.0,1.37692484]
[1732330865156,0.1212,98046.0,98045.0,1.37692484]
[1732330865388,0.01592503,98059.0,98045.0,1.37692484]
[1732330865626,0.00213424,98078.0,98045.0,1.37692484]
[1732330865855,0.00127434,98077.0,98045.0,1.37692484]
[1732330867348,0.1,98070.0,98045.0,1.37692484]
[1732330867578,0.00127434,98069.0,98045.0,1.37692484]
[1732330868470,0.045,98068.0,98045.0,1.37692484]
[1732330868693,0.12247434,98067.0,98045.0,1.37692484]
[1732330869346,0.12247434,98067.0,98045.0,1.33192484]
[1732330870486,0.12247434,98067.0,98045.0,1.33364464]
[1732330872697,0.12247434,98067.0,98045.0,1.28864464]
[1732330874237,0.12247434,98067.0,98046.0,0.1319]
[1732330874490,0.04627434,98067.0,98046.0,0.1319]
[1732330875385,0.0451,98076.0,98047.0,0.00101986]
[1732330876088,0.0008599,98078.0,98048.0,0.0827]
[1732330876322,0.0008599,98078.0,98049.0,0.00101974]
[1732330876557,0.0008599,98078.0,98050.0,0.00101974]
[1732330876782,0.0008599,98078.0,98051.0,0.00101974]
[1732330877019,0.0008599,98078.0,98049.0,0.00101971]
[1732330877227,0.0008599,98078.0,98052.0,0.01142464]
[1732330877434,0.45409207,98080.0,98053.0,0.0010197]
[1732330877656,0.45409207,98080.0,98054.0,0.0010197]
[1732330877860,0.45409207,98080.0,98055.0,0.0492]
[1732330878068,0.45409207,98080.0,98056.0,0.00101968]
[1732330878291,0.42362846,98080.0,98056.0,0.01244432]
[1732330878499,0.2017691,98080.0,98056.0,0.01244432]
[1732330878923,0.18638043,98080.0,98056.0,0.01244432]
[1732330879130,0.14105043,98080.0,98056.0,0.01244432]
[1732330879361,0.02423043,98080.0,98056.0,0.01244432]
[1732330879816,0.0784,98099.0,98057.0,0.0801]
[1732330880023,0.0784,98099.0,98058.0,0.01142464]
[1732330880484,0.0784,98099.0,98059.0,0.08111959]
[1732330880715,0.0784,98099.0,98060.0,0.00571232]
[1732330880926,0.0784,98099.0,98061.0,0.00101957]
[1732330881128,0.0784,98099.0,98062.0,0.00101957]
[1732330881358,0.0784,98099.0,98063.0,0.0456]
[1732330881582,0.0784,98099.0,98064.0,0.00101957]
[1732330882910,0.0008596,98080.0,98064.0,0.00101957]
[1732330883835,0.0008596,98080.0,98065.0,0.0801]
[1732330884064,0.0008596,98080.0,98066.0,0.00101957]
[1732330884954,0.0008596,98080.0,98065.0,0.03611957]
[1732330885175,0.0008596,98080.0,98066.0,0.00101957]
[1732330887524,0.1,98102.0,98066.0,0.00101957]
[1732330887525,0.1,98117.0,98068.0,0.0456]
[1732330887749,0.1,98117.0,98069.0,0.09844411]
[1732330887978,0.1,98119.0,98070.0,0.1257]
[1732330888230,0.1,98127.0,98071.0,0.1257]
[1732330888451,0.1,98127.0,98072.0,0.1257]
[1732330888869,0.1,98127.0,98073.0,0.1257]
[1732330889083,0.1,98127.0,98059.0,0.05077926]
[1732330889084,0.1,98127.0,98060.0,0.1257]
[1732330889330,0.1,98127.0,98059.0,0.05077926]
[1732330889539,0.1,98127.0,98060.0,0.1257]
[1732330889768,0.1,98127.0,98059.0,0.05077926]
[1732330889974,0.1,98127.0,98061.0,0.1257]
[1732330890207,0.1,98127.0,98059.0,0.05077926]
[1732330890408,0.0776605,98116.0,98060.0,0.1257]
[1732330890649,0.0776605,98116.0,98059.0,0.05077926]
[1732330890875,0.0776605,98116.0,98061.0,0.1257]
[1732330891137,0.0776605,98116.0,98063.0,0.0801]
[1732330891364,0.0776605,98116.0,98064.0,0.0456]
[1732330891587,0.0776605,98116.0,98065.0,0.0801]
[1732330891814,0.0776605,98116.0,98067.0,0.0801]
[1732330892049,0.0776605,98116.0,98069.0,0.0801]
[1732330892254,0.0776605,98116.0,98059.0,0.09232789]
[1732330892255,0.0776605,98116.0,98070.0,0.1257]
[1732330892462,0.0776605,98116.0,98059.0,0.09232789]
[1732330892676,0.0776605,98116.0,98060.0,0.1257]
[1732330893765,0.0776605,98116.0,98062.0,0.0812]
[1732330893995,0.0776605,98116.0,98064.0,0.0812]
[1732330894234,0.0776605,98116.0,98066.0,0.0457]
[1732330894455,0.0776605,98116.0,98067.0,0.0812]
[1732330894678,0.0776605,98116.0,98068.0,0.0457]
[1732330894925,0.0776605,98116.0,98069.0,0.0812]
[1732330895138,0.0776605,98116.0,98071.0,0.0812]
[1732330895360,0.0776605,98116.0,98072.0,0.0457]
[1732330895578,0.0776605,98116.0,98073.0,0.0812]
[1732330895806,0.0776605,98116.0,98074.0,0.0457]
[1732330896507,0.0776605,98116.0,98075.0,0.023]
[1732330896736,0.0776605,98116.0,98074.0,0.0457]
[1732330896737,0.0776605,98116.0,98074.0,0.0237]
[1732330897990,0.0776605,98116.0,98075.0,0.0812]
[1732330900044,0.0492,98113.0,98075.0,0.0812]
[1732330900871,0.0492,98113.0,98075.0,0.0362]
[1732330903230,0.07516803,98112.0,98075.0,0.0362]
[1732330904789,0.07516803,98112.0,98074.0,0.05605563]
[1732330907096,0.07516803,98112.0,98075.0,0.02351351]
[1732330907693,0.07516803,98112.0,98076.0,0.0823]
[1732330908770,0.07516803,98112.0,98076.0,0.0373]
[1732330910957,0.0782,98110.0,98074.0,0.05605563]
[1732330911818,0.04540665,98110.0,98075.0,0.00101931]
[1732330912655,0.00101931,98109.0,98074.0,0.09437494]
[1732330912862,0.00101931,98110.0,98074.0,0.09437494]
[1732330914372,0.0468,98109.0,98074.0,0.09437494]
[1732330914581,0.0468,98107.0,98074.0,0.01207494]
[1732330914819,0.0816,98106.0,98066.0,0.023]
[1732330915041,0.0816,98104.0,98066.0,0.023]
[1732330915286,0.0816,98102.0,98066.0,0.023]
[1732330915717,0.0816,98102.0,98067.0,0.0467]
[1732330916788,0.0468,98101.0,98067.0,0.0017]
[1732330917009,0.0816,98100.0,98067.0,0.0017]
[1732330918601,0.0816,98098.0,98053.0,0.05028705]
[1732330919916,0.0816,98098.0,98067.0,0.0017202]
[1732330920713,0.0816,98098.0,98053.0,0.05028705]
[1732330920922,0.0816,98098.0,98048.0,0.05080394]
[1732330921390,0.07851132,98098.0,98050.0,0.1321]
[1732330921687,0.07851132,98098.0,98054.0,0.049]
[1732330922095,0.07851132,98098.0,98054.0,0.0516231]
[1732330922959,0.0468,98099.0,98054.0,0.0516231]
[1732330923171,0.0468,98099.0,98056.0,0.049]
[1732330923818,0.0468,98099.0,98057.0,0.05024451]
[1732330924034,0.04681931,98098.0,98057.0,0.05024451]
[1732330925384,0.04681931,98098.0,98059.0,0.05063816]
[1732330925611,0.04681931,98098.0,98060.0,0.00101951]
[1732330925830,0.04041931,98098.0,98060.0,0.00101951]
[1732330926031,0.0787,98097.0,98060.0,0.00101951]
[1732330927017,0.1245,98095.0,98046.0,0.05016376]
[1732330927253,0.023,98104.0,98046.0,0.05016376]
[1732330927467,0.1245,98101.0,98047.0,0.00101947]
[1732330927702,0.1245,98099.0,98047.0,0.00101947]
[1732330927938,0.0787,98096.0,98047.0,0.00101947]
[1732330928210,0.04701951,98095.0,98047.0,0.00101947]
[1732330928443,0.0787,98092.0,98047.0,0.00101947]
[1732330928689,0.0787,98090.0,98047.0,0.00101947]
[1732330928930,0.046,98089.0,98047.0,0.00101947]
[1732330929164,0.046,98087.0,98047.0,0.00101947]
[1732330929414,0.046,98085.0,98046.0,0.05099849]
[1732330929647,0.0787,98084.0,98048.0,0.30591]
[1732330929878,0.06391394,98084.0,98048.0,0.30591]
[1732330930109,0.002,98106.0,98048.0,0.30591]
[1732330930110,0.00127437,98101.0,98049.0,0.09909008]
[1732330930340,0.00127434,98104.0,98049.0,0.09909008]
[1732330930568,0.002,98102.0,98050.0,0.30597]
[1732330930784,0.00127434,98101.0,98051.0,0.05054339]
[1732330931247,0.00127434,98101.0,98052.0,0.30596]
[1732330932773,0.0008599,98098.0,98052.0,0.30596]
[1732330933012,0.0809,98097.0,98052.0,0.26096]
[1732330933261,0.0809,98095.0,98052.0,0.26096]
[1732330933474,0.0809,98092.0,98052.0,0.26096]
[1732330933681,0.0809,98090.0,98052.0,0.26096]
[1732330933909,0.0776,98088.0,98052.0,0.26096]
[1732330934373,0.07367707,98088.0,98053.0,0.05054875]
[1732330934888,0.0478,98089.0,98056.0,0.05090396]
[1732330935108,0.0008599,98098.0,98056.0,0.05090396]
[1732330935316,0.0008599,98098.0,98057.0,0.39664]
[1732330935521,0.00127434,98097.0,98057.0,0.39664]
[1732330935723,0.0008599,98098.0,98058.0,0.05077772]
[1732330936136,0.0008599,98098.0,98057.0,0.39664]
[1732330936137,0.00127435,98097.0,98059.0,0.40101086]
[1732330936347,0.0008599,98098.0,98060.0,0.0457]
[1732330936772,0.0008599,98098.0,98062.0,0.0007]
[1732330936984,0.0478,98097.0,98062.0,0.0007]
[1732330937244,0.0478,98097.0,98063.0,0.35093]
[1732330937700,0.0776,98096.0,98063.0,0.35093]
[1732330939670,0.0776,98096.0,98063.0,0.39134544]
[1732330940813,0.0776,98096.0,98063.0,0.34634544]
[1732330941497,0.0771,98094.0,98063.0,0.34634544]
[1732330941740,0.0465,98093.0,98063.0,0.34634544]
[1732330942445,0.0771,98094.0,98063.0,0.34634544]
[1732330942446,0.03485655,98108.0,98063.0,0.34634544]
[1732330942670,0.1,98122.0,98065.0,0.1243]
[1732330942900,0.00076472,98117.0,98067.0,0.0462]
[1732330943107,0.00076472,98117.0,98069.0,0.0462]
[1732330943323,0.00076472,98127.0,98069.0,0.0462]
[1732330943551,0.00076472,98126.0,98070.0,0.474]
[1732330943761,0.00076472,98127.0,98071.0,0.0462]
[1732330943969,0.00076472,98126.0,98072.0,0.0462]
[1732330944198,0.00076472,98127.0,98072.0,0.0462]
[1732330944405,0.1,98128.0,98072.0,0.0462]
[1732330944406,0.00076472,98126.0,98072.0,0.0462]
[1732330944644,0.02376472,98127.0,98072.0,0.0462]
[1732330944875,0.0465,98117.0,98072.0,0.0012]
[1732330945090,0.0465,98115.0,98072.0,0.0012]
[1732330945328,0.0465,98113.0,98072.0,0.0012]
[1732330945546,0.0008602,98097.0,98072.0,0.0012]
[1732330946437,0.0008602,98097.0,98073.0,0.0781]
[1732330946644,0.0008602,98097.0,98073.0,0.47399]
[1732330948804,0.0008602,98097.0,98073.0,0.42899]
[1732330950373,0.0003162,98097.0,98073.0,0.42899]
[1732330951044,0.0003162,98097.0,98073.0,0.46965453]
[1732330952825,0.0003162,98097.0,98073.0,0.42465453]
[1732330954400,0.04624292,98101.0,98075.0,0.0822]
[1732330954632,0.04624292,98101.0,98076.0,0.00101933]
[1732330954846,0.00076472,98126.0,98077.0,0.04681933]
[1732330954847,0.023,98125.0,98077.0,0.04681933]
[1732330955090,0.00076472,98117.0,98077.0,0.04681933]
[1732330956796,0.00076472,98117.0,98077.0,0.00181933]
[1732330957015,0.0488,98116.0,98077.0,0.00181933]
[1732330957242,0.04956472,98115.0,98077.0,0.00181933]
[1732330957463,0.04956472,98115.0,98078.0,0.40778]
[1732330957713,0.0008601,98097.0,98079.0,0.08321933]
[1732330960856,0.03810976,98104.0,98079.0,0.03821933]
[1732330964447,0.03810976,98104.0,98079.0,0.0372]
[1732330964665,0.03810976,98104.0,98079.0,0.0368832]
[1732330964897,0.03810976,98104.0,98078.0,0.3996632]
[1732330967198,0.03810976,98104.0,98078.0,0.44061746]
[1732330967838,0.03810976,98104.0,98079.0,0.0827]
[1732330968741,0.03810976,98104.0,98079.0,0.0377]
[1732330970094,0.00234976,98104.0,98079.0,0.0377]
[1732330971615,0.06,98099.0,98079.0,0.0377]
[1732330972671,0.02303,98099.0,98079.0,0.0377]
[1732330972901,0.02303,98099.0,98078.0,0.43503746]
[1732330973129,0.0795,98098.0,98078.0,0.43503746]
[1732330975505,0.02052999,98099.0,98078.0,0.43503746]
[1732330976401,0.00418997,98099.0,98079.0,0.0456]
[1732330976633,0.00418997,98099.0,98080.0,0.00101934]
[1732330976846,0.00148926,98104.0,98079.0,0.00161934]
[1732330977111,0.00127415,98117.0,98080.0,0.04636425]
[1732330977316,0.00127415,98116.0,98080.0,0.46955425]
[1732330977545,0.1,98148.0,98080.0,0.46955425]
[1732330977546,0.0012741,98133.0,98081.0,0.1267]
[1732330977757,0.0012741,98132.0,98082.0,0.04636413]